fUSD/lending_fUSD_20240116
["ID","MTS","AMOUNT","RATE_DAILY","PERIOD"]
[311836284,1705444239570,-21433.37666238,0.00032876,5]
[311836286,1705444239581,-5287.03569806,0.00032876,5]
[311836288,1705444239591,-12562.26007336,0.00032876,5]
[311836438,1705444240897,-158.32389578,0.000309,2]
[311836440,1705444240906,-30511.97330829,0.00032876,5]
[311836442,1705444240918,-1301.076,0.00032876,5]
[311836453,1705444241010,-603.96565913,0.00032876,5]
[311836456,1705444241021,-2430.0,0.00032876,5]
[311836641,1705444242958,-452.57449115,0.00032876,5]
[311836649,1705444243022,-3021.711229,0.00031799,2]
[311836652,1705444243035,-167.82069539,0.00031799,2]
[311836654,1705444243044,-2893.69006845,0.00032876,5]
[311836656,1705444243055,-5044.89999996,0.00032876,5]
[311836658,1705444243067,-2566.53199256,0.00032876,5]
[311836660,1705444243077,-550.45503259,0.00032876,5]
[311836662,1705444243096,-377.629412,0.00032876,5]
[311836663,1705444243107,-6533.17183394,0.00032876,5]
[311836664,1705444243118,-6125.38027315,0.00032876,5]
[311836665,1705444243144,-573.98515133,0.00032876,5]
[311836666,1705444243155,-125227.92292417,0.00032876,5]
[311836668,1705444243170,-11042.60065063,0.00032876,5]
[311836702,1705444245917,-202.97954373,0.00028,2]
[311836704,1705444245927,-158.32389578,0.000311,2]
[311836706,1705444245936,-151.95219512,0.00031752,2]
[311836707,1705444245945,-273.52,0.00031962,2]
[311836708,1705444245954,-1139.29294514,0.00032218,2]
[311836709,1705444245963,-2737.23526608,0.00032876,5]
[311836710,1705444245974,-304.84667716,0.00032876,5]
[311836711,1705444245995,-2603.8,0.00032876,5]
[311836712,1705444246006,-2626.05556476,0.00032876,5]
[311836713,1705444246284,-113020.95271286,0.00032876,5]
[311836716,1705444246419,-2127.57608946,0.00032875,2]
[311836717,1705444246428,-1033.05017563,0.00032876,5]
[311836718,1705444246440,-19695.0928525,0.00032876,5]
[311836719,1705444246451,-417.71718952,0.00032876,5]
[311836720,1705444246487,-2003.9644242,0.00032876,5]
[311836721,1705444246499,-5424.9483132,0.00032876,5]
[311836722,1705444246510,-432.5,0.00032876,5]
[311836723,1705444246521,-4237.15714331,0.00032876,5]
[311836724,1705444246540,-1370.19300514,0.00032876,5]
[311836725,1705444246556,-4131.28245147,0.00032876,5]
[311836726,1705444246576,-325.95661418,0.00032876,5]
[311836727,1705444246587,-1037.5034046,0.00032876,5]
[311836728,1705444264274,204.0,0.00021869,2]
[311836735,1705445175798,458.14179625,0.00021869,2]
[311836736,1705445197771,-150.0,0.00021999,2]
[311836737,1705445197792,-150.0,0.00021999,2]
[311836738,1705445197813,-20000.0,0.00022,2]
[311836754,1705445432048,-289.9683,0.000229,2]
[311836756,1705445432057,-169.68236114,0.000229,2]
[311836757,1705445432066,-22.14174086,0.00022978,2]
[311836758,1705445432078,-538.88,0.00022978,2]
[311836759,1705445432089,-154.41825914,0.00022978,2]
[311836760,1705445432098,-1000.0,0.00023,2]
[311836761,1705445432108,-718.63,0.00023,2]
[311836762,1705445432118,-734.58,0.00023,2]
[311836763,1705445432127,-723.64,0.00023,2]
[311836764,1705445432136,-728.38,0.00023,2]
[311836765,1705445432145,-729.95,0.00023,2]
[311836766,1705445432155,-722.75,0.00023,2]
[311836767,1705445432164,-729.65,0.00023,2]
[311836768,1705445432174,-652.92,0.00023419,2]
[311836769,1705445432183,-1710.78162524,0.00024,2]
[311836770,1705445432195,-433.73191629,0.00024,2]
[311836771,1705445432232,-1075.8,0.00024,2]
[311836772,1705445432244,-1174.37054762,0.00024,2]
[311836773,1705445432256,-5605.31591085,0.00024,2]
[311836774,1705445432265,-395.40113788,0.00024206,2]
[311836775,1705445432274,-1108.82660036,0.00024748,2]
[311836776,1705445432286,-524.96989304,0.00024748,2]
[311836777,1705445432297,-600.65005144,0.00024748,2]
[311836778,1705445432309,-2765.55345516,0.00024748,2]
[311836779,1705445432318,-6236.5926,0.000249,2]
[311836780,1705445432328,-732.67,0.00024946,2]
[311836781,1705445432337,-738.45,0.00024946,2]
[311836782,1705445432347,-722.36,0.00024947,2]
[311836783,1705445432356,-721.96,0.00024947,2]
[311836784,1705445432366,-499.99,0.00024947,2]
[311836785,1705445432377,-1310.51,0.00024947,2]
[311836787,1705445432387,-730.05,0.00024948,2]
[311836789,1705445432396,-150.99,0.00024948,2]
[311836791,1705445432406,-548.85,0.00024948,2]
[311836793,1705445432415,-734.13,0.0002495,2]
[311836795,1705445432424,-711.52,0.00024952,2]
[311836797,1705445432433,-725.71,0.00024954,2]
[311836799,1705445432442,-156.0,0.00024954,2]
[311836801,1705445432451,-712.34,0.00024958,2]
[311836803,1705445432461,-731.65,0.00024963,2]
[311836805,1705445432470,-717.13,0.00024971,2]
[311836807,1705445432479,-714.62,0.00024983,2]
[311836809,1705445432489,-737.56,0.00024992,2]
[311836811,1705445432498,-4269.32574779,0.00024999,2]
[311836813,1705445432507,-1000.0,0.00025,2]
[311836815,1705445432517,-322.72569877,0.00025,2]
[311836816,1705445432525,-450.0,0.00025,3]
[311836818,1705445432535,-719.15,0.00025,2]
[311836820,1705445432544,-933.54690587,0.00025,2]
[311836822,1705445432553,-52217.73,0.00025,2]
[311836824,1705445432563,-201.95095563,0.00025,2]
[311836826,1705445432572,-394.55091696,0.00025,2]
[311836828,1705445432582,-718.9,0.00025018,2]
[311836830,1705445432591,-450.0,0.0002502,3]
[311836832,1705445432600,-717.66,0.0002503,2]
[311836834,1705445432611,-727.85,0.00025044,2]
[311836835,1705445432620,-1927.97371971,0.00025047,2]
[311836836,1705445432631,-1498.95358187,0.00025047,2]
[311836837,1705445432643,-2880.56746299,0.00025047,2]
[311836838,1705445432653,-1890.59896594,0.00025047,2]
[311836839,1705445432663,-1232.96477326,0.00025047,2]
[311836840,1705445432679,-975.65000004,0.00025047,2]
[311836841,1705445432691,-5424.06698634,0.00025047,2]
[311836842,1705445432700,-169.68236113,0.000251,2]
[311836843,1705445432709,-725.66,0.00025278,2]
[311836844,1705445432719,-1476.08,0.00025358,2]
[311836845,1705445432729,-250.0,0.00025365,2]
[311836846,1705445432739,-250.0,0.0002538,2]
[311836847,1705445432749,-159.5,0.00025467,2]
[311836848,1705445432831,-165.93,0.00025564,2]
[311836849,1705445432840,-155.5,0.00025658,2]
[311836850,1705445432849,-652.92,0.00025683,2]
[311836851,1705445432858,-922.09764329,0.00025708,2]
[311836852,1705445432877,-639.91916815,0.00025708,2]
[311836853,1705445432888,-1216.44,0.00025708,2]
[311836854,1705445432904,-818.10924833,0.00025708,2]
[311836855,1705445432915,-10625.0,0.00025708,2]
[311836856,1705445432931,-734.94264747,0.00025708,2]
[311836857,1705445432942,-8371.10129276,0.00025708,2]
[311836858,1705445432951,-4458.99870724,0.00025831,2]
[311836859,1705445432971,-410.0968622,0.00025831,2]
[311836860,1705445432983,-363.0257753,0.00025831,2]
[311836861,1705445432994,-1258.57832661,0.00025831,2]
[311836862,1705445433006,-576.23513454,0.00025831,2]
[311836863,1705445433019,-1774.73159411,0.00025831,2]
[311836864,1705445433028,-1304.48626257,0.00025865,2]
[311836865,1705445433055,-695.51373743,0.00025865,2]
[311836866,1705445433063,-155.5,0.00025881,2]
[311836867,1705445433072,-159.5,0.00025892,2]
[311836868,1705445433081,-600.0,0.00025988,2]
[311836869,1705445433090,-528.73626257,0.00026009,2]
[311836870,1705445433102,-373.39852308,0.00026009,2]
[311836871,1705445433112,-499.16534257,0.00026009,2]
[311836872,1705445433124,-0.09987178,0.00026009,2]
[311836873,1705445433133,-166.84,0.00026037,2]
[311836874,1705445433142,-155.5,0.00026104,2]
[311836875,1705445433152,-135.08012822,0.00026257,2]
[311836876,1705445433163,-590.57987178,0.00026257,2]
[311836877,1705445433172,-159.5,0.00026316,2]
[311836878,1705445433181,-155.5,0.00026327,2]
[311836879,1705445433190,-155.5,0.0002655,2]
[311836880,1705445433199,-803.46918615,0.00026575,2]
[311836897,1705445438102,-365.99022689,0.00022955,2]
[311836898,1705445438114,-369.61977311,0.00022955,2]
[311836899,1705445438123,-19123.00177591,0.000245,2]
[311836900,1705445438132,-6811.93081385,0.00026575,2]
[311836901,1705445438141,-1367.51,0.00026575,2]
[311836902,1705445438151,-1000.0,0.00026704,2]
[311836903,1705445438160,-159.5,0.00026741,2]
[311836904,1705445438169,-154.21,0.00026754,2]
[311836905,1705445438178,-155.5,0.00026773,2]
[311836906,1705445438187,-720.99,0.00026833,2]
[311836907,1705445438196,-155.5,0.00026995,2]
[311836908,1705445438205,-500.0,0.00027,3]
[311836909,1705445438213,-415.5894399,0.00027,2]
[311836910,1705445438222,-457.52,0.000271,2]
[311836911,1705445438231,-2500.0,0.000271,2]
[311836912,1705445438241,-159.5,0.00027165,2]
[311836913,1705445438250,-165.93,0.00027167,2]
[311836914,1705445438259,-374.71049551,0.00027199,2]
[311836915,1705445438268,-2489.0,0.000272,3]
[311836916,1705445438277,-24423.0,0.000272,3]
[311836917,1705445438286,-725.66,0.00027235,2]
[311836918,1705445438295,-169.68236113,0.000273,2]
[311836919,1705445438304,-159.5,0.0002759,2]
[311836920,1705445438313,-400.0,0.00027596,2]
[311836921,1705445438322,-722.05,0.00027921,2]
[311836922,1705445438331,-652.92,0.00027947,2]
[311836923,1705445438340,-364.25149533,0.00028,2]
[311836924,1705445438349,-159.5,0.00028014,2]
[311836925,1705445438358,-154.21,0.00028092,2]
[311836926,1705445438368,-725.66,0.00028214,2]
[311836927,1705445438377,-165.93,0.0002877,2]
[311836928,1705445438386,-550.0,0.00029,3]
[311836929,1705445438395,-725.66,0.00029192,2]
[311836930,1705445438405,-715.52,0.00029198,2]
[311836931,1705445438414,-25504.57242598,0.00029216,2]
[311836932,1705445438423,-734.44,0.00029217,2]
[311836933,1705445438432,-721.45,0.00029217,2]
[311836934,1705445438441,-600.0,0.00029237,2]
[311836935,1705445438450,-154.21,0.00029429,2]
[311836936,1705445438460,-300.16105425,0.000295,3]
[311836937,1705445438469,-1526.55080948,0.00029586,2]
[311836946,1705445438616,-553.1567,0.000298,2]
[311836948,1705445438625,-1000.0,0.000298,2]
[311836950,1705445438634,-175.43459194,0.000298,2]
[311836952,1705445438643,-481.52050131,0.00029823,4]
[311836954,1705445438652,-422.08967507,0.00029823,2]
[311836955,1705445438662,-100000.0,0.000299,2]
[311836956,1705445438671,-200.0,0.00029923,3]
[311836957,1705445438682,-487.5387229,0.0002998,3]
[311836958,1705445438691,-100000.0,0.0003,2]
[311836959,1705445438700,-763.33861947,0.0003,4]
[311836960,1705445438711,-155.0,0.0003,2]
[311836961,1705445438720,-770.36519149,0.0003,2]
[311836962,1705445438730,-6233.43657343,0.0003,2]
[311836963,1705445438739,-4287.73299527,0.0003,4]
[311836964,1705445438748,-2097.39757978,0.0003,2]
[311836965,1705445438758,-582.28505175,0.0003,2]
[311836966,1705445438767,-691.51374802,0.0003,2]
[311836967,1705445438777,-16439.43488637,0.0003,2]
[311836968,1705445438786,-175.2204157,0.00030039,7]
[311836969,1705445438795,-214.74157544,0.00030064,2]
[311836970,1705445438804,-204.0,0.00030084,2]
[311836971,1705445438814,-204.0,0.00030084,2]
[311836972,1705445438823,-153.84,0.00030137,2]
[311836973,1705445438833,-725.66,0.00030171,2]
[311836974,1705445438842,-652.92,0.00030211,2]
[311836975,1705445438851,-481.5205013,0.00030323,5]
[311836976,1705445438861,-150.0,0.00030346,2]
[311836977,1705445438870,-165.93,0.00030373,2]
[311836978,1705445438879,-150.0,0.00030653,2]
[311836979,1705445438889,-150.0,0.00030733,2]
[311836980,1705445438898,-3319.7549736,0.0003076,4]
[311836981,1705445438907,-4366.75761901,0.0003076,4]
[311836982,1705445438916,-500.0,0.0003079,10]
[311836983,1705445438929,-150.0,0.000308,20]
[311836984,1705445438938,-150.0,0.00030805,2]
[311836985,1705445438947,-150.0,0.00030811,2]
[311836986,1705445438957,-481.5205013,0.00030823,5]
[311836987,1705445438966,-150.0,0.00030835,2]
[311836988,1705445438976,-28065.2518,0.000309,2]
[311836989,1705445438985,-150.0,0.0003097,2]
[311836990,1705445438994,-171.55454803,0.0003099,2]
[311836991,1705445439005,-847.426425,0.00030994,2]
[311836992,1705445439014,-100000.0,0.00031,2]
[311836993,1705445439024,-600.0,0.00031,3]
[311836994,1705445439033,-150.0,0.00031025,2]
[311836995,1705445439042,-175.2204157,0.00031038,7]
[311836996,1705445439052,-400.0,0.00031046,2]
[311836997,1705445439061,-150.0,0.00031048,2]
[311836998,1705445439069,-153.84,0.0003105,2]
[311836999,1705445439078,-150.0,0.00031074,2]
[311837000,1705445439087,-1395.523,0.00031076,2]
[311837001,1705445439096,-215.275,0.00031076,2]
[311837002,1705445439106,-847.426425,0.00031095,2]
[311837003,1705445439115,-277.48596396,0.00031099,4]
[311837004,1705445439124,-725.66,0.00031149,2]
[311837005,1705445439133,-162.45855933,0.00031163,7]
[311837006,1705445439142,-150.0,0.00031197,2]
[311837007,1705445439153,-847.426425,0.00031197,2]
[311837008,1705445439164,-847.426425,0.00031298,2]
[311837009,1705445439173,-150.0,0.00031307,2]
[311837010,1705445439182,-481.5205013,0.00031323,5]
[311837011,1705445439191,-500.0,0.00031338,10]
[311837012,1705445439202,-150.0,0.00031349,2]
[311837013,1705445439212,-150.0,0.00031365,2]
[311837014,1705445439223,-150.0,0.00031377,2]
[311837015,1705445439234,-847.426425,0.00031399,2]
[311837016,1705445439244,-150.0,0.00031427,2]
[311837017,1705445439254,-234.40117,0.00031448,4]
[311837018,1705445439264,-234.40117,0.00031448,4]
[311837019,1705445439275,-234.40117,0.00031448,4]
[311837020,1705445439285,-234.40117,0.00031448,4]
[311837021,1705445439295,-234.40117,0.00031448,4]
[311837022,1705445439305,-234.40117,0.00031448,4]
[311837023,1705445439316,-234.40117,0.00031448,4]
[311837024,1705445439325,-234.40117,0.00031448,4]
[311837025,1705445439335,-234.40117,0.00031448,4]
[311837026,1705445439345,-259.40117,0.00031448,4]
[311837027,1705445439356,-847.426425,0.000315,2]
[311837028,1705445439367,-269.72,0.00031507,2]
[311837029,1705445439377,-150.0,0.00031509,2]
[311837030,1705445439387,-150.0,0.00031522,2]
[311837031,1705445439397,-234.40117,0.00031548,4]
[311837032,1705445439407,-234.40117,0.00031548,4]
[311837033,1705445439418,-234.40117,0.00031548,4]
[311837034,1705445439429,-234.40117,0.00031548,4]
[311837035,1705445439438,-234.40117,0.00031548,4]
[311837036,1705445439450,-234.40117,0.00031548,4]
[311837037,1705445439460,-234.40117,0.00031548,4]
[311837038,1705445439471,-234.40117,0.00031548,4]
[311837039,1705445439481,-234.40117,0.00031548,4]
[311837040,1705445439490,-234.40117,0.00031548,4]
[311837041,1705445439500,-1877.27685269,0.00031559,2]
[311837042,1705445439511,-847.426425,0.00031602,2]
[311837043,1705445439520,-197.41,0.00031644,2]
[311837044,1705445439530,-151.40117,0.00031648,4]
[311837045,1705445439540,-151.40117,0.00031648,4]
[311837046,1705445439550,-151.40117,0.00031648,4]
[311837047,1705445439560,-151.40117,0.00031648,4]
[311837048,1705445439570,-151.40117,0.00031648,4]
[311837049,1705445439580,-287.40117,0.00031648,4]
[311837050,1705445439590,-234.40117,0.00031648,4]
[311837051,1705445439600,-234.40117,0.00031648,4]
[311837052,1705445439611,-234.40117,0.00031648,4]
[311837053,1705445439623,-234.40117,0.00031648,4]
[311837054,1705445439634,-234.40117,0.00031648,4]
[311837055,1705445439645,-234.40117,0.00031648,4]
[311837056,1705445439656,-234.40117,0.00031648,4]
[311837057,1705445439667,-234.40117,0.00031648,4]
[311837058,1705445439680,-234.40117,0.00031648,4]
[311837059,1705445439691,-234.40117,0.00031648,4]
[311837060,1705445439702,-207.3483,0.00031699,2]
[311837061,1705445439712,-5000.0,0.000317,2]
[311837062,1705445439723,-159.46936081,0.000317,2]
[311837063,1705445439734,-20296.8212,0.000317,3]
[311837064,1705445439744,-158.32389578,0.000317,2]
[311837065,1705445439755,-168.79154123,0.000317,2]
[311837066,1705445439768,-2522.86561818,0.000317,3]
[311837067,1705445439785,-156.61,0.000317,2]
[311837068,1705445439796,-847.426425,0.00031703,2]
[311837069,1705445439808,-150.0,0.00031717,2]
[311837070,1705445439819,-150.0,0.00031727,2]
[311837071,1705445439830,-275.0,0.00031736,5]
[311837072,1705445439841,-151.40117,0.00031748,4]
[311837073,1705445439852,-151.40117,0.00031748,4]
[311837074,1705445439864,-151.40117,0.00031748,4]
[311837075,1705445439877,-151.40117,0.00031748,4]
[311837076,1705445439895,-151.40117,0.00031748,4]
[311837077,1705445439906,-151.40117,0.00031748,4]
[311837078,1705445439919,-234.40117,0.00031748,4]
[311837079,1705445439930,-234.40117,0.00031748,4]
[311837080,1705445439946,-234.40117,0.00031748,4]
[311837081,1705445439957,-234.40117,0.00031748,4]
[311837082,1705445439968,-234.40117,0.00031748,4]
[311837083,1705445439981,-234.40117,0.00031748,4]
[311837084,1705445439993,-234.40117,0.00031748,4]
[311837085,1705445440004,-234.40117,0.00031748,4]
[311837086,1705445440017,-234.40117,0.00031748,4]
[311837087,1705445440031,-234.40117,0.00031748,4]
[311837088,1705445440042,-151.95219512,0.00031752,2]
[311837089,1705445440052,-359592.02916835,0.00031799,3]
[311837090,1705445440069,-459016.71132769,0.00031799,3]
[311837091,1705445440127,-2261.92145196,0.00031799,3]
[311837092,1705445440167,-1251.75,0.00031799,3]
[311837093,1705445440180,-36900.11544289,0.00031799,3]
[311837094,1705445440192,-22745.0,0.00031799,3]
[311837095,1705445440208,-1008.0,0.00031799,3]
[311837096,1705445440227,-841.25146435,0.00031799,3]
[311837097,1705445440241,-278.97770089,0.00031799,3]
[311837098,1705445440254,-1797.91698902,0.00031799,3]
[311837099,1705445440267,-4914.07210524,0.00031799,3]
[311837100,1705445440282,-1027.1718567,0.00031799,3]
[311837101,1705445440296,-1991.8647,0.00031799,3]
[311837102,1705445440321,-42013.96424483,0.00031799,3]
[311837103,1705445440337,-24069.9999999,0.00031799,3]
[311837104,1705445440351,-2557.93803663,0.00031799,3]
[311837105,1705445440403,-1058.031975,0.00031799,3]
[311837120,1705445442181,-825.51222204,0.00025047,2]
[311837123,1705445442199,-684.89104101,0.00025047,2]
[311837142,1705445442663,-11480.8642347,0.00025047,2]
[311837144,1705445442682,-51058.78194713,0.00031799,3]
[311837147,1705445442723,-935.11173024,0.00031799,3]
[311837152,1705445442891,-463.38494082,0.00031799,3]
[311837155,1705445442915,-2161.75108759,0.00031799,3]
[311837158,1705445442956,-527.83021617,0.00031799,3]
[311837271,1705445444472,-169.68236113,0.000295,2]
[311837274,1705445444487,-1611.31910989,0.00031799,3]
[311837277,1705445444534,-1276.8556622,0.00031799,3]
[311837281,1705445444567,-504.29789126,0.00031799,3]
[311837284,1705445444599,-86000.0,0.00031799,3]
[311837307,1705445444902,-504.66047342,0.00031799,3]
[311837309,1705445444922,-1075.97623632,0.00031799,3]
[311837315,1705445444990,-5437.69,0.00031799,3]
[311837330,1705445445168,-21301.25135998,0.00031799,3]
[311837333,1705445445199,-43459.061525,0.00031799,3]
[311837355,1705445445463,-1290.21,0.00031799,3]
[311837511,1705445446348,-311.54207616,0.00031799,3]
[311837512,1705445446366,-336.83639728,0.00031799,3]
[311837513,1705445446389,-630.46184745,0.00031799,3]
[311837514,1705445446401,-1154.74082348,0.00031799,3]
[311837515,1705445446413,-1522.449999,0.00031799,3]
[311837516,1705445446424,-587.29032948,0.00031799,3]
[311837517,1705445446437,-455.488698,0.00031799,3]
[311837518,1705445446449,-48563.422,0.00031799,3]
[311837519,1705445446483,-6877.09886753,0.00031799,3]
[311837520,1705445446495,-4218.76392157,0.00031799,3]
[311837521,1705445446615,-10755.51313818,0.00031799,3]
[311837524,1705445446661,-260.2328434,0.00031799,3]
[311837526,1705445446672,-51353.81628715,0.00031799,3]
[311837529,1705445446683,-2160.0,0.00031799,3]
[311837531,1705445446699,-4280.57999564,0.00031799,3]
[311837534,1705445446711,-562.92330503,0.00031799,3]
[311837536,1705445446727,-660.19,0.00031799,3]
[311837539,1705445446739,-1000.05245018,0.00031799,3]
[311837541,1705445446752,-932.12437712,0.00031799,3]
[311837543,1705445446764,-2091.95178938,0.00031799,3]
[311837545,1705445446776,-701.666667,0.00031799,3]
[311837548,1705445446788,-7521.29999952,0.00031799,3]
[311837558,1705445447002,-335816.043225,0.00031799,3]
[311837560,1705445447013,-624.82988308,0.00031799,3]
[311837564,1705445447036,-815.88988599,0.00031799,3]
[311837570,1705445447087,-26634.97072718,0.00031799,3]
[311837571,1705445447149,-7177.07257617,0.00031799,3]
[311837572,1705445448361,-322.72569877,0.00025,2]
[311837573,1705445448371,-923.77430122,0.00031799,3]
[311837574,1705445448382,-854.0,0.00031799,3]
[311837575,1705445448393,-812.47332721,0.00031799,3]
[311837576,1705445448407,-3450.3558824,0.00031799,3]
[311837577,1705445448418,-12275.47448398,0.00031799,3]
[311837578,1705445448429,-4980.52511853,0.00031799,3]
[311837579,1705445448502,-596.27160018,0.00031799,3]
[311837580,1705445448608,-169.68236113,0.000317,2]
[311837581,1705445448617,-2430.41763887,0.00031799,3]
[311837582,1705445448629,-430.0,0.00031799,3]
[311837583,1705445448641,-17029.2,0.00031799,3]
[311837584,1705445448749,-459.3406998,0.00031799,3]
[311837585,1705445504871,1526.55080948,0.00020698,2]
[311837590,1705445581506,176.23,0.00022,2]
[311837591,1705445710069,150.0,0.00021999,2]
[311837593,1705445857619,162.72658405,0.00021987,2]
[311837594,1705445866147,-160.61277548,0.00022085,2]
[311837595,1705445866167,-3143.53137679,0.00022085,2]
[311837596,1705445866186,-2138.69674334,0.00022086,2]
[311837597,1705445866206,-722.74,0.00022087,2]
[311837598,1705445866228,-2306.13754497,0.00022087,2]
[311837599,1705445866247,-3328.19103668,0.00022087,2]
[311837600,1705445866267,-758.72176657,0.00022087,2]
[311837601,1705445866287,-867.03093739,0.00022087,2]
[311837602,1705445866307,-150.0,0.00022087,2]
[311837603,1705445866326,-150.0,0.00022087,2]
[311837604,1705445866347,-300.0,0.00022087,2]
[311837605,1705445866368,-5213.49776909,0.00022088,2]
[311837606,1705445866387,-161.72866539,0.00022088,2]
[311837607,1705445866406,-969.33057482,0.00022088,2]
[311837608,1705445894307,668.12,0.00020015,2]
[311837609,1705445935568,221.18,0.0002189,2]
[311837610,1705445950743,1091.36,0.00021853,2]
[311837612,1705445973333,211.35275457,0.00021918,2]
[311837613,1705445999212,360.0,0.00021719,2]
[311837616,1705446139754,22495.88,0.00021637,2]
[311837617,1705446203697,168.68,0.00021586,2]
[311837618,1705446207795,195.7,0.00021586,2]
[311837619,1705446226557,200.0,0.00021595,2]
[311837629,1705446318941,156.18,0.00021594,2]
[311837630,1705446361398,1153.19,0.00021471,2]
[311837631,1705446428568,150.0,0.000218,2]
[311837632,1705446431041,662.21,0.00019569,2]
[311837633,1705446435380,662.21,0.00021833,2]
[311837634,1705446460954,176.94,0.00021644,2]
[311837635,1705446473164,712.0,0.00021464,2]
[311837636,1705446496715,150.0,0.000218,2]
[311837637,1705446606327,150.0,0.00021482,2]
[311837638,1705446606352,10.17,0.00021482,2]
[311837641,1705446632296,-285.30810589,0.00021996,2]
[311837642,1705446632305,-471.03818749,0.00021997,2]
[311837643,1705446632315,-176.23,0.00021999,2]
[311837644,1705446632325,-151.06375353,0.00021999,2]
[311837645,1705446632335,-150.0,0.00021999,2]
[311837646,1705446632344,-726.58,0.00022007,2]
[311837647,1705446632355,-734.51,0.00022007,2]
[311837648,1705446632366,-731.01,0.00022009,2]
[311837649,1705446632377,-732.78,0.00022011,2]
[311837650,1705446632387,-711.84,0.00022014,2]
[311837651,1705446632397,-718.24,0.00022017,2]
[311837652,1705446632407,-718.04,0.0002202,2]
[311837653,1705446632417,-499.99,0.00022024,2]
[311837654,1705446632427,-1781.0,0.00022024,2]
[311837655,1705446632436,-728.56,0.00022024,2]
[311837656,1705446632445,-150.0,0.00022029,2]
[311837657,1705446632455,-617.72234279,0.0002203,2]
[311837658,1705446632468,-102.10765721,0.0002203,2]
[311837659,1705446632477,-308.5173428,0.00022036,2]
[311837660,1705446632509,-428.6826572,0.00022036,2]
[311837661,1705446632517,-726.14,0.00022041,2]
[311837662,1705446632527,-226.52,0.00022072,2]
[311837663,1705446632536,-710.23,0.00022085,2]
[311837664,1705446632545,-16.0828928,0.00022088,2]
[311837665,1705446632564,-697.9271072,0.00022088,2]
[311837666,1705446632573,-1741.47,0.00022088,2]
[311837667,1705446632583,-733.9,0.0002209,2]
[311837668,1705446632592,-734.44,0.0002209,2]
[311837669,1705446632602,-201.95,0.00022092,2]
[311837670,1705446632611,-156.18,0.00022156,2]
[311837671,1705446632621,-226.52,0.0002229,2]
[311837672,1705446632630,-176.94,0.00022445,2]
[311837673,1705446632639,-1153.19,0.00022449,2]
[311837674,1705446632650,-226.52,0.00022509,2]
[311837675,1705446632659,-726.65,0.00022522,2]
[311837677,1705446632669,-717.12,0.00022543,2]
[311837679,1705446632678,-737.7,0.00022545,2]
[311837681,1705446632688,-280.08503726,0.00022547,2]
[311837683,1705446632697,-156.18,0.00022719,2]
[311837685,1705446632707,-226.52,0.00022727,2]
[311837687,1705446632717,-513.11462212,0.00022798,2]
[311837689,1705446632726,-405.64689418,0.00022798,2]
[311837691,1705446632735,-214.74157544,0.00022799,2]
[311837693,1705446632745,-1000.0,0.00022799,2]
[311837695,1705446632754,-419.7956,0.000228,2]
[311837697,1705446632763,-48623.1634363,0.000228,2]
[311837699,1705446632775,-317.79218626,0.000228,2]
[311837702,1705446632787,-1755.6396676,0.000228,2]
[311837706,1705446632813,-1124.72457423,0.000228,2]
[311837708,1705446632825,-42560.25,0.000228,2]
[311837710,1705446632836,-11094.75003561,0.000228,2]
[311837711,1705446632846,-2500.0,0.000228,2]
[311837712,1705446632855,-1000.0,0.000228,2]
[311837713,1705446632864,-457.52,0.000228,2]
[311837714,1705446632874,-201.54,0.00022803,2]
[311837715,1705446632883,-710.75,0.00022804,2]
[311837716,1705446632893,-727.05,0.00022866,2]